fUSD/lending_fUSD_20250302
["ID","MTS","AMOUNT","RATE_DAILY","PERIOD"]
[355068352,1740886277875,-511.96,0.00027944,2]
[355068354,1740886277884,-500.0,0.00027944,2]
[355068356,1740886277894,-235.27316471,0.00027944,2]
[355068358,1740886277905,-773.0,0.00027944,2]
[355068360,1740886277914,-972.77,0.00027944,2]
[355068362,1740886277924,-500.0,0.00027944,2]
[355068364,1740886277934,-181.17,0.00027944,2]
[355068366,1740886277943,-930.92,0.00027944,2]
[355068368,1740886277953,-500.0,0.00027944,2]
[355068370,1740886277962,-1323.95,0.00027944,2]
[355068372,1740886277971,-585.56,0.00027944,2]
[355068386,1740886278105,-596.03,0.00027944,2]
[355068389,1740886278116,-676.15,0.00027944,2]
[355068391,1740886278126,-500.0,0.00027944,2]
[355068393,1740886278135,-615.85,0.00027944,2]
[355068395,1740886278145,-628.7,0.00027944,2]
[355068397,1740886278155,-1083.56,0.00027944,2]
[355068399,1740886278164,-725.32,0.00027944,2]
[355068400,1740886278174,-500.0,0.00027944,2]
[355068402,1740886278184,-500.0,0.00027944,2]
[355068404,1740886278194,-500.0,0.00027944,2]
[355068406,1740886278203,-574.97,0.00027944,2]
[355068408,1740886278213,-500.0,0.00027944,2]
[355068410,1740886278223,-1484.24,0.00027944,2]
[355068412,1740886278233,-500.0,0.00027944,2]
[355068414,1740886278247,-500.0,0.00027944,2]
[355068416,1740886278256,-852.48,0.00027944,2]
[355068418,1740886278266,-500.0,0.00027945,2]
[355068420,1740886278275,-500.0,0.00027945,2]
[355068422,1740886278286,-594.87,0.00027945,2]
[355068424,1740886278296,-500.0,0.00027945,2]
[355068426,1740886278307,-500.0,0.00027945,2]
[355068428,1740886278318,-2118.74,0.00027945,2]
[355068430,1740886278329,-770.88,0.00027945,2]
[355068432,1740886278339,-689.78,0.00027945,2]
[355068434,1740886278348,-1773.24,0.00027945,2]
[355068435,1740886278359,-829.94,0.00027945,2]
[355068436,1740886278369,-700.04,0.00027945,2]
[355068437,1740886278379,-2186.92,0.00027945,2]
[355068438,1740886278390,-935.67,0.00027945,2]
[355068439,1740886278400,-2071.99,0.00027945,2]
[355068440,1740886278410,-1297.72,0.00027945,2]
[355068441,1740886278420,-1265.46,0.00027945,2]
[355068442,1740886278429,-1949.08,0.00027945,2]
[355068444,1740886278439,-500.0,0.00027945,2]
[355068446,1740886278448,-500.0,0.00027945,2]
[355068448,1740886278458,-500.0,0.00027945,2]
[355068450,1740886278468,-921.11,0.00027945,2]
[355068452,1740886278477,-500.0,0.00027945,2]
[355068454,1740886278487,-892.94,0.00027945,2]
[355068456,1740886278497,-24885.3429936,0.00028,2]
[355068458,1740886278506,-497.70685988,0.00028,2]
[355068460,1740886278515,-254.207883,0.00028,2]
[355068462,1740886278525,-9753.50674754,0.00028,60]
[355068464,1740886278535,-500.0,0.00028209,2]
[355068466,1740886278545,-1920.82,0.00028209,2]
[355068468,1740886278554,-634.404577,0.00028209,2]
[355068470,1740886278564,-888.71,0.00028209,2]
[355068472,1740886278573,-687.32,0.00028209,2]
[355068474,1740886278583,-1223.77,0.00028209,2]
[355068476,1740886278593,-1307.848542,0.00028209,2]
[355068478,1740886278603,-587.99,0.00028209,2]
[355068480,1740886278612,-784.37,0.00028209,2]
[355068482,1740886278622,-536.68,0.00028209,2]
[355068484,1740886278631,-909.18,0.00028209,2]
[355068486,1740886278641,-804.26,0.00028209,2]
[355068488,1740886278650,-500.0,0.00028209,2]
[355068490,1740886278660,-500.0,0.00028209,2]
[355068492,1740886278670,-1965.8,0.00028209,2]
[355068494,1740886278680,-1217.64,0.00028209,2]
[355068496,1740886278689,-1549.49,0.00028209,2]
[355068498,1740886278700,-1656.93,0.00028209,2]
[355068499,1740886278710,-2049.58,0.00028209,2]
[355068502,1740886278719,-1403.0,0.00028209,2]
[355068504,1740886278729,-599.61,0.00028209,2]
[355068506,1740886278739,-1415.66,0.00028209,2]
[355068508,1740886278748,-1518.4,0.0002821,2]
[355068510,1740886278758,-1174.52,0.0002821,2]
[355068512,1740886278769,-568.93,0.00028212,2]
[355068514,1740886278778,-424.23931401,0.00028212,2]
[355068516,1740886278788,-500.0,0.00028212,2]
[355068518,1740886278797,-500.0,0.00028212,2]
[355068520,1740886278806,-1119.09,0.00028212,2]
[355068522,1740886278816,-500.0,0.00028212,2]
[355068524,1740886278825,-500.0,0.00028212,2]
[355068526,1740886278835,-1177.24,0.00028212,2]
[355068528,1740886278845,-737.91,0.00028212,2]
[355068530,1740886278854,-572.57,0.00028212,2]
[355068532,1740886278863,-500.0,0.00028212,2]
[355068534,1740886278873,-901.55,0.00028214,90]
[355068536,1740886278883,-572.4,0.00028217,2]
[355068538,1740886278892,-500.0,0.00028217,2]
[355068540,1740886278901,-649.25,0.00028217,2]
[355068542,1740886278911,-500.0,0.00028217,2]
[355068544,1740886278920,-512.54,0.00028217,2]
[355068545,1740886278929,-407.36194392,0.00028217,2]
[355068548,1740886278938,-378.87288038,0.00028217,2]
[355068549,1740886278948,-210.71775888,0.00028217,2]
[355068552,1740886278958,-1302.52,0.00028217,2]
[355068554,1740886278967,-1313.5,0.00028217,2]
[355068555,1740886278976,-1610.22,0.00028217,2]
[355068558,1740886278986,-500.0,0.00028217,2]
[355068560,1740886278995,-500.0,0.00028217,2]
[355068561,1740886279005,-502.69,0.00028217,2]
[355068563,1740886279015,-517.97,0.00028217,2]
[355068565,1740886279025,-500.0,0.00028217,2]
[355068567,1740886279035,-500.0,0.00028217,2]
[355068569,1740886279044,-500.0,0.00028217,2]
[355068571,1740886279054,-500.0,0.00028217,2]
[355068573,1740886279064,-2080.77,0.00028217,2]
[355068575,1740886279074,-530.68,0.00028217,2]
[355068577,1740886279084,-1512.09,0.00028217,2]
[355068579,1740886279093,-500.0,0.00028217,2]
[355068581,1740886279102,-2251.6,0.00028217,2]
[355068583,1740886279112,-756.86,0.00028217,2]
[355068585,1740886279121,-1576.87,0.00028217,2]
[355068587,1740886279131,-702.12,0.00028217,2]
[355068589,1740886279140,-1032.14,0.00028217,2]
[355068591,1740886279150,-563.08,0.00028217,2]
[355068593,1740886279159,-1051.96,0.00028217,2]
[355068595,1740886279169,-500.0,0.00028217,2]
[355068597,1740886279178,-500.0,0.00028217,2]
[355068599,1740886279188,-1280.59,0.00028217,2]
[355068601,1740886279198,-500.0,0.00028217,2]
[355068604,1740886279212,-613.87,0.00028217,2]
[355068606,1740886279221,-1032.28,0.00028217,2]
[355068608,1740886279231,-744.55,0.00028217,2]
[355068610,1740886279245,-883.02,0.00028217,2]
[355068612,1740886279254,-1104.35,0.00028217,2]
[355068614,1740886279263,-508.86,0.00028217,2]
[355068616,1740886279273,-500.0,0.00028217,2]
[355068618,1740886279283,-1457.92,0.00028217,2]
[355068620,1740886279292,-811.98,0.00028217,2]
[355068622,1740886279302,-1709.58,0.00028217,2]
[355068624,1740886279313,-1625.42,0.00028217,2]
[355068626,1740886279324,-1889.57,0.00028217,2]
[355068628,1740886279333,-500.0,0.00028217,2]
[355068630,1740886279342,-500.0,0.00028217,2]
[355068632,1740886279352,-1547.38,0.00028217,2]
[355068634,1740886279362,-500.0,0.00028217,2]
[355068636,1740886279372,-1485.16,0.00028217,2]
[355068638,1740886279382,-945.2,0.00028217,2]
[355068640,1740886279391,-1404.56,0.00028217,2]
[355068642,1740886279401,-429.52913302,0.00028217,2]
[355068644,1740886279410,-1332.39,0.00028217,2]
[355068646,1740886279419,-500.0,0.00028217,2]
[355068647,1740886279428,-549.14,0.00028217,2]
[355068650,1740886279440,-500.0,0.00028217,2]
[355068652,1740886279450,-596.9,0.00028217,2]
[355068654,1740886279460,-750.14,0.00028217,2]
[355068655,1740886279470,-1874.6,0.00028217,2]
[355068657,1740886279480,-500.0,0.00028217,2]
[355068659,1740886279489,-500.0,0.00028217,2]
[355068661,1740886279499,-500.0,0.00028218,2]
[355068663,1740886279508,-500.0,0.00028218,2]
[355068665,1740886279517,-409.58,0.00028218,2]
[355068667,1740886279527,-647.64,0.00028218,2]
[355068669,1740886279536,-151.0,0.00028218,7]
[355068671,1740886279545,-534.37,0.00028218,2]
[355068673,1740886279554,-500.0,0.00028218,2]
[355068675,1740886279564,-500.0,0.00028218,2]
[355068677,1740886279574,-500.0,0.00028218,2]
[355068679,1740886279584,-161.623472,0.00028218,7]
[355068681,1740886279593,-500.0,0.00028218,2]
[355068683,1740886279602,-500.0,0.00028218,2]
[355068684,1740886279612,-793.43,0.00028218,2]
[355068686,1740886279621,-500.0,0.00028218,2]
[355068688,1740886279630,-759.83,0.00028218,2]
[355068690,1740886279639,-758.88,0.00028218,2]
[355068692,1740886279649,-500.0,0.00028218,2]
[355068694,1740886279658,-500.0,0.00028218,2]
[355068696,1740886279667,-511.96,0.00028218,2]
[355068698,1740886279676,-500.0,0.00028218,2]
[355068700,1740886279686,-773.0,0.00028218,2]
[355068702,1740886279695,-972.77,0.00028218,2]
[355068704,1740886279705,-500.0,0.00028218,2]
[355068706,1740886279714,-930.92,0.00028218,2]
[355068708,1740886279724,-500.0,0.00028218,2]
[355068710,1740886279733,-1323.95,0.00028218,2]
[355068712,1740886279742,-585.56,0.00028218,2]
[355068714,1740886279751,-596.03,0.00028218,2]
[355068716,1740886279760,-676.15,0.00028218,2]
[355068717,1740886279771,-500.0,0.00028218,2]
[355068719,1740886279781,-615.85,0.00028218,2]
[355068721,1740886279791,-628.7,0.00028218,2]
[355068723,1740886279800,-1083.56,0.00028218,2]
[355068725,1740886279810,-725.32,0.00028218,2]
[355068727,1740886279819,-401.37318585,0.00028218,2]
[355068729,1740886279829,-446.89335284,0.00028218,2]
[355068731,1740886279838,-500.0,0.00028218,2]
[355068733,1740886279848,-574.97,0.00028218,2]
[355068735,1740886279858,-500.0,0.00028218,2]
[355068737,1740886279868,-1484.24,0.00028218,2]
[355068739,1740886279878,-500.0,0.00028218,2]
[355068741,1740886279888,-502.68162432,0.00028218,2]
[355068743,1740886279897,-852.48,0.00028218,2]
[355068745,1740886279906,-500.0,0.00028219,2]
[355068747,1740886279916,-486.37040489,0.00028219,2]
[355068749,1740886279926,-594.87,0.00028219,2]
[355068751,1740886279935,-500.0,0.00028219,2]
[355068753,1740886279945,-500.0,0.00028219,2]
[355068755,1740886279955,-2118.74,0.00028219,2]
[355068757,1740886279964,-770.88,0.00028219,2]
[355068759,1740886279974,-689.78,0.00028219,2]
[355068761,1740886279983,-1773.24,0.00028219,2]
[355068763,1740886279992,-829.94,0.00028219,2]
[355068765,1740886280002,-700.04,0.00028219,2]
[355068767,1740886280012,-2186.92,0.00028219,2]
[355068769,1740886280022,-935.67,0.00028219,2]
[355068771,1740886280032,-2071.99,0.00028219,2]
[355068773,1740886280041,-1297.72,0.00028219,2]
[355068775,1740886280050,-1265.46,0.00028219,2]
[355068777,1740886280059,-1949.08,0.00028219,2]
[355068778,1740886280073,-500.0,0.00028219,2]
[355068780,1740886280082,-500.0,0.00028219,2]
[355068782,1740886280092,-229.04,0.00028219,2]
[355068784,1740886280102,-921.11,0.00028219,2]
[355068786,1740886280112,-500.0,0.00028219,2]
[355068789,1740886280122,-892.94,0.00028219,2]
[355068790,1740886280132,-196.36,0.00028316,2]
[355068792,1740886280142,-211.0,0.000284,4]
[355068795,1740886280152,-22499.95803365,0.000284,2]
[355068796,1740886280162,-12881.17950702,0.000284,2]
[355068798,1740886280171,-173.34,0.00028454,2]
[355068800,1740886280180,-500.0,0.00028483,2]
[355068802,1740886280190,-1920.82,0.00028483,2]
[355068804,1740886280200,-634.404577,0.00028483,2]
[355068806,1740886280210,-888.71,0.00028483,2]
[355068808,1740886280219,-687.32,0.00028483,2]
[355068810,1740886280229,-1223.77,0.00028483,2]
[355068812,1740886280242,-1307.848542,0.00028483,2]
[355068814,1740886280251,-162.746381,0.00028483,2]
[355068816,1740886280261,-587.99,0.00028483,2]
[355068818,1740886280271,-784.37,0.00028483,2]
[355068820,1740886280281,-536.68,0.00028483,2]
[355068822,1740886280291,-909.18,0.00028483,2]
[355068824,1740886280300,-804.26,0.00028483,2]
[355068826,1740886280312,-500.0,0.00028483,2]
[355068828,1740886280322,-500.0,0.00028483,2]
[355068830,1740886280332,-1965.8,0.00028483,2]
[355068832,1740886280341,-1217.64,0.00028483,2]
[355068834,1740886280351,-1549.49,0.00028483,2]
[355068836,1740886280361,-1656.93,0.00028483,2]
[355068838,1740886280371,-2049.58,0.00028483,2]
[355068853,1740886280515,-1403.0,0.00028483,2]
[355068855,1740886280526,-599.61,0.00028483,2]
[355068857,1740886280536,-500.0,0.00028483,2]
[355068859,1740886280546,-500.0,0.00028483,2]
[355068861,1740886280555,-500.0,0.00028483,2]
[355068863,1740886280565,-500.0,0.00028483,2]
[355068865,1740886280575,-955.0,0.00028483,2]
[355068867,1740886280585,-500.0,0.00028483,2]
[355068869,1740886280595,-500.0,0.00028483,2]
[355068871,1740886280604,-500.0,0.00028483,2]
[355068873,1740886280613,-500.0,0.00028483,2]
[355068875,1740886280622,-500.0,0.00028483,2]
[355068877,1740886280632,-500.0,0.00028483,2]
[355068879,1740886280641,-500.0,0.00028483,2]
[355068881,1740886280651,-500.0,0.00028483,2]
[355068883,1740886280662,-500.0,0.00028483,2]
[355068885,1740886280672,-500.0,0.00028483,2]
[355068887,1740886280682,-500.0,0.00028483,2]
[355068889,1740886280691,-673.0,0.00028483,2]
[355068891,1740886280701,-1415.66,0.00028483,2]
[355068892,1740886280710,-500.0,0.00028483,2]
[355068894,1740886280720,-500.0,0.00028483,2]
[355068896,1740886280731,-500.0,0.00028483,2]
[355068898,1740886280741,-500.0,0.00028483,2]
[355068900,1740886280750,-500.0,0.00028483,2]
[355068902,1740886280760,-500.0,0.00028483,2]
[355068904,1740886280769,-500.0,0.00028483,2]
[355068906,1740886280779,-1518.4,0.00028484,2]
[355068908,1740886280788,-1174.52,0.00028484,2]
[355068910,1740886280798,-568.93,0.00028486,2]
[355068912,1740886280807,-500.0,0.00028486,2]
[355068914,1740886280816,-500.0,0.00028486,2]
[355068916,1740886280826,-1119.09,0.00028486,2]
[355068918,1740886280835,-500.0,0.00028486,2]
[355068920,1740886280844,-500.0,0.00028486,2]
[355068922,1740886280853,-1177.24,0.00028486,2]
[355068923,1740886280863,-737.91,0.00028486,2]
[355068925,1740886280872,-572.57,0.00028486,2]
[355068927,1740886280882,-500.0,0.00028486,2]
[355068929,1740886280892,-937.94934965,0.00028486,5]
[355068931,1740886280902,-901.55,0.00028488,90]
[355068933,1740886280911,-3603.51525537,0.0002849,7]
[355068935,1740886280921,-208.47012547,0.0002849,7]
[355068937,1740886280931,-444.22434767,0.0002849,2]
[355068939,1740886280940,-572.4,0.00028491,2]
[355068941,1740886280950,-500.0,0.00028491,2]
[355068943,1740886280959,-649.25,0.00028491,2]
[355068945,1740886280968,-500.0,0.00028491,2]
[355068947,1740886280977,-512.54,0.00028491,2]
[355068949,1740886280986,-1550.56,0.00028491,2]
[355068951,1740886280996,-1302.52,0.00028491,2]
[355068953,1740886281005,-1313.5,0.00028491,2]
[355068954,1740886281014,-1610.22,0.00028491,2]
[355068956,1740886281024,-500.0,0.00028491,2]
[355068958,1740886281034,-500.0,0.00028491,2]
[355068960,1740886281043,-502.69,0.00028491,2]
[355068962,1740886281053,-517.97,0.00028491,2]
[355068964,1740886281062,-500.0,0.00028491,2]
[355068966,1740886281072,-500.0,0.00028491,2]
[355068968,1740886281082,-500.0,0.00028491,2]
[355068970,1740886281092,-500.0,0.00028491,2]
[355068972,1740886281101,-500.0,0.00028491,2]
[355068974,1740886281111,-2080.77,0.00028491,2]
[355068976,1740886281120,-530.68,0.00028491,2]
[355068978,1740886281130,-1512.09,0.00028491,2]
[355068980,1740886281139,-500.0,0.00028491,2]
[355068981,1740886281149,-2251.6,0.00028491,2]
[355068983,1740886281158,-756.86,0.00028491,2]
[355068985,1740886281168,-1576.87,0.00028491,2]
[355068987,1740886281178,-702.12,0.00028491,2]
[355068989,1740886281187,-1032.14,0.00028491,2]
[355068991,1740886281197,-563.08,0.00028491,2]
[355068993,1740886281206,-1051.96,0.00028491,2]
[355068994,1740886281216,-500.0,0.00028491,2]
[355068995,1740886281225,-500.0,0.00028491,2]
[355068996,1740886281236,-1280.59,0.00028491,2]
[355068997,1740886281247,-500.0,0.00028491,2]
[355068998,1740886281257,-613.87,0.00028491,2]
[355068999,1740886281266,-1032.28,0.00028491,2]
[355069000,1740886281276,-744.55,0.00028491,2]
[355069001,1740886281285,-883.02,0.00028491,2]
[355069002,1740886281295,-1104.35,0.00028491,2]
[355069003,1740886281304,-508.86,0.00028491,2]
[355069004,1740886281314,-352.18539586,0.00028491,2]
[355069005,1740886281324,-1457.92,0.00028491,2]
[355069006,1740886281334,-811.98,0.00028491,2]
[355069007,1740886281344,-1709.58,0.00028491,2]
[355069008,1740886281354,-1625.42,0.00028491,2]
[355069009,1740886281364,-1889.57,0.00028491,2]
[355069010,1740886281373,-500.0,0.00028491,2]
[355069011,1740886281383,-500.0,0.00028491,2]
[355069012,1740886281393,-1547.38,0.00028491,2]
[355069013,1740886281403,-500.0,0.00028491,2]
[355069015,1740886281412,-1485.16,0.00028491,2]
[355069016,1740886281422,-945.2,0.00028491,2]
[355069017,1740886281432,-1404.56,0.00028491,2]
[355069019,1740886281441,-1332.39,0.00028491,2]
[355069021,1740886281451,-500.0,0.00028491,2]
[355069023,1740886281460,-549.14,0.00028491,2]
[355069025,1740886281470,-500.0,0.00028491,2]
[355069027,1740886281478,-596.9,0.00028491,2]
[355069029,1740886281489,-750.14,0.00028491,2]
[355069031,1740886281498,-1874.6,0.00028491,2]
[355069033,1740886281508,-500.0,0.00028491,2]
[355069035,1740886281518,-500.0,0.00028491,2]
[355069037,1740886281527,-500.0,0.00028492,2]
[355069039,1740886281536,-500.0,0.00028492,2]
[355069041,1740886281546,-647.64,0.00028492,2]
[355069043,1740886281555,-534.37,0.00028492,2]
[355069045,1740886281564,-500.0,0.00028492,2]
[355069047,1740886281573,-500.0,0.00028492,2]
[355069049,1740886281583,-500.0,0.00028492,2]
[355069050,1740886281592,-513.87918373,0.00028492,2]
[355069052,1740886281602,-632.33403729,0.00028492,2]
[355069054,1740886281611,-793.43,0.00028492,2]
[355069056,1740886281620,-500.0,0.00028492,2]
[355069058,1740886281630,-759.83,0.00028492,2]
[355069060,1740886281639,-758.88,0.00028492,2]
[355069062,1740886281649,-500.0,0.00028492,2]
[355069064,1740886281658,-399.12833477,0.00028492,2]
[355069066,1740886281668,-511.96,0.00028492,2]
[355069068,1740886281677,-500.0,0.00028492,2]
[355069070,1740886281688,-773.0,0.00028492,2]
[355069072,1740886281698,-972.77,0.00028492,2]
[355069074,1740886281707,-500.0,0.00028492,2]
[355069076,1740886281716,-930.92,0.00028492,2]
[355069078,1740886281726,-281.53,0.00028492,2]
[355069080,1740886281735,-1323.95,0.00028492,2]
[355069082,1740886281744,-585.56,0.00028492,2]
[355069084,1740886281754,-596.03,0.00028492,2]
[355069086,1740886281763,-676.15,0.00028492,2]
[355069088,1740886281772,-220.56346668,0.00028492,2]
[355069090,1740886281781,-615.85,0.00028492,2]
[355069091,1740886281790,-628.7,0.00028492,2]
[355069093,1740886281799,-1083.56,0.00028492,2]
[355069095,1740886281808,-725.32,0.00028492,2]
[355069097,1740886281817,-500.0,0.00028492,2]
[355069099,1740886281827,-574.97,0.00028492,2]
[355069101,1740886281836,-500.0,0.00028492,2]
[355069103,1740886281847,-1484.24,0.00028492,2]
[355069105,1740886281857,-500.0,0.00028492,2]
[355069107,1740886281867,-852.48,0.00028492,2]
[355069109,1740886281876,-500.0,0.00028493,2]
[355069111,1740886281885,-594.87,0.00028493,2]
[355069113,1740886281895,-500.0,0.00028493,2]
[355069115,1740886281904,-500.0,0.00028493,2]
[355069117,1740886281914,-2118.74,0.00028493,2]
[355069119,1740886281924,-770.88,0.00028493,2]
[355069121,1740886281933,-689.78,0.00028493,2]
[355069123,1740886281942,-1773.24,0.00028493,2]
[355069125,1740886281951,-829.94,0.00028493,2]
[355069127,1740886281961,-700.04,0.00028493,2]
[355069129,1740886281970,-2186.92,0.00028493,2]
[355069131,1740886281980,-935.67,0.00028493,2]
[355069133,1740886281989,-2071.99,0.00028493,2]
[355069135,1740886281999,-1297.72,0.00028493,2]
[355069137,1740886282008,-1265.46,0.00028493,2]
[355069139,1740886282018,-1949.08,0.00028493,2]
[355069141,1740886282027,-500.0,0.00028493,2]
[355069143,1740886282036,-500.0,0.00028493,2]
[355069145,1740886282046,-921.11,0.00028493,2]
[355069147,1740886282055,-500.0,0.00028493,2]
[355069149,1740886282064,-892.94,0.00028493,2]
[355069151,1740886282074,-500.0,0.00028499,2]
[355069153,1740886282083,-456.38143096,0.00028499,2]
[355069155,1740886282093,-3227712.70315935,0.000285,3]
[355069179,1740886282318,-711872.52554601,0.000285,3]
[355069181,1740886282330,-448110.94671384,0.000285,3]
[355069183,1740886282340,-326731.02948142,0.000285,3]
[355069280,1740886283298,-150.0,0.00021893,2]
[355069282,1740886283307,-3730.50472742,0.00021893,2]
[355069284,1740886283321,-196.49527258,0.00021893,2]
[355069286,1740886283332,-138.22972742,0.00024657,2]
[355075006,1740887431496,-588.64446436,0.0002192,2]
[355075007,1740887431506,-189.90767308,0.0002192,2]
[355075008,1740887431516,-1062.32,0.0002192,2]
[355075009,1740887431526,-153.77221282,0.00023127,2]
[355075010,1740887431535,-215.12609763,0.00023227,10]
[355075011,1740887431545,-150.0,0.00023233,2]
[355075012,1740887431555,-300.0,0.00023251,2]
[355075013,1740887431566,-570.0,0.00023252,2]
[355075014,1740887431576,-640.0,0.00023252,2]
[355075015,1740887431589,-150.0,0.00023252,2]
[355075016,1740887431599,-576.54653207,0.00023252,2]
[355075017,1740887431612,-1006.45346793,0.00023252,2]
[355075018,1740887431623,-598.22780253,0.00023252,2]
[355075019,1740887431665,-186.77219747,0.00023252,2]
[355075020,1740887431674,-247.83780253,0.00023252,2]
[355075021,1740887431883,-292.16219747,0.00023252,2]
[355075022,1740887431895,-1427.0,0.00023252,2]
[355075023,1740887431905,-114.89199706,0.00023252,2]
[355075163,1740887437355,-1154.10800294,0.00023252,2]
[355075164,1740887437365,-909.0,0.00023252,2]
[355075165,1740887437375,-122.69199706,0.00023252,2]
[355075166,1740887437575,-127.30800294,0.00023252,2]
[355075167,1740887437586,-233.0,0.00023252,2]
[355075168,1740887437601,-150.0,0.00023252,2]
[355075169,1740887437612,-2839.0,0.00023252,2]
[355075170,1740887437621,-1011.0,0.00023252,2]
[355075171,1740887437635,-1732.04179054,0.00023413,2]
[355075362,1740887439529,-1018.95820946,0.00023413,2]
[355075364,1740887439538,-150.0,0.00023604,7]
[355075366,1740887439548,-250.0,0.00023648,2]
[355075368,1740887439558,-4287.04179054,0.00023738,2]
[355075377,1740887439640,-362.00109027,0.00023738,2]
[355075379,1740887439652,-372.50946649,0.00023738,2]
[355075385,1740887439702,-424.36076721,0.00023738,2]
[355075400,1740887439864,-1476.29675264,0.00023738,2]
[355075403,1740887439877,-705.61713285,0.00023738,2]
[355075405,1740887439888,-1177.83767682,0.00023738,2]
[355075407,1740887439905,-223.29232318,0.00023738,2]
[355075409,1740887439915,-1867.1166534,0.00023838,2]
[355075412,1740887439932,-1256.807799,0.00023838,2]
[355075418,1740887439984,-20776.0755476,0.00023838,2]
[355075420,1740887439995,-18942.29,0.00023838,2]
[355075422,1740887440005,-402.19,0.00023838,2]
[355075424,1740887440015,-284.76176178,0.000239,3]
[355075426,1740887440024,-1000.0,0.00023904,2]
[355075428,1740887440034,-1347.0,0.00024,2]
[355075430,1740887440047,-1062.32,0.00024184,2]
[355075432,1740887440056,-284.76176158,0.0002421,3]
[355075434,1740887440066,-653.01,0.00024224,2]
[355075436,1740887440076,-1446.1,0.00024263,2]
[355075438,1740887440087,-600.0,0.00024301,2]
[355075440,1740887440097,-284.76176158,0.00024521,3]
[355075442,1740887440107,-947.268,0.00024557,2]
[355075444,1740887440116,-1000.0,0.00024557,2]
[355075446,1740887440126,-207.6847,0.00024557,2]
[355075448,1740887440138,-259.79867377,0.00024557,2]
[355075450,1740887440151,-780.73610068,0.00024557,2]
[355075452,1740887440161,-171.32065869,0.00024557,2]
[355075454,1740887440171,-2162.02846594,0.00024557,2]
[355075456,1740887440182,-281.12100427,0.00024594,2]
[355075458,1740887440191,-1685.18,0.00024647,2]
[355075460,1740887440202,-151.23,0.00024655,2]
[355075462,1740887440212,-247.1900267,0.00024656,2]
[355075464,1740887440222,-503.28276659,0.00024656,2]
[355075466,1740887440233,-500.0,0.00024656,2]
[355075469,1740887440242,-500.0,0.00024656,2]
[355075471,1740887440252,-500.0,0.00024656,2]
[355075473,1740887440261,-500.0,0.00024656,2]
[355075475,1740887440272,-500.0,0.00024656,2]
[355075477,1740887440282,-500.0,0.00024656,2]
[355075479,1740887440292,-500.0,0.00024656,2]
[355075481,1740887440302,-500.0,0.00024656,2]
[355075483,1740887440312,-500.0,0.00024656,2]
[355075485,1740887440322,-500.0,0.00024656,2]
[355075487,1740887440332,-500.0,0.00024656,2]
[355075489,1740887440343,-500.0,0.00024656,2]
[355075491,1740887440353,-500.0,0.00024656,2]
[355075493,1740887440364,-500.0,0.00024656,2]
[355075495,1740887440374,-500.0,0.00024656,2]
[355075497,1740887440385,-500.0,0.00024656,2]
[355075499,1740887440396,-500.0,0.00024656,2]
[355075501,1740887440406,-500.0,0.00024656,2]
[355075503,1740887440415,-500.0,0.00024656,2]